bitfinex/quotes_ETHUSD_20241130
["timestamp","ask_amount","ask_price","bid_price","bid_amount"]
[1732951458736,1.80883527,3701.3,3701.2,2.7291985]
[1732951458934,1.77504961,3701.3,3701.2,2.7291985]
[1732951459262,1.77504961,3701.3,3701.2,2.75369574]
[1732951459445,0.09651913,3701.3,3701.2,2.75369574]
[1732951461546,0.09651913,3701.3,3701.2,0.05187574]
[1732951461754,0.68030181,3701.3,3701.2,0.05187574]
[1732951461949,0.68030181,3701.3,3701.2,0.0273785]
[1732951462465,0.13030181,3701.3,3701.2,0.0273785]
[1732951462760,0.09651913,3701.3,3701.2,2.75369574]
[1732951462918,0.13029725,3701.3,3701.2,2.75369574]
[1732951463124,0.09651913,3701.3,3701.2,2.75369574]
[1732951463963,1.60151913,3701.3,3701.2,0.05187574]
[1732951464261,1.76504885,3701.3,3701.2,0.05187574]
[1732951466454,1.79883325,3701.3,3701.2,0.05187574]
[1732951466660,1.79883325,3701.3,3701.2,0.0273785]
[1732951470069,1.79883325,3701.3,3701.2,0.05212176]
[1732951470070,1.76504885,3701.3,3701.2,0.05212176]
[1732951470303,1.79883009,3701.3,3701.2,0.05212176]
[1732951470964,1.76504885,3701.3,3701.2,0.03098531]
[1732951473895,1.79883584,3701.3,3701.2,0.03098531]
[1732951475891,0.26004885,3701.3,3701.2,0.03098531]
[1732951476094,0.09651913,3701.3,3701.2,0.03098531]
[1732951478895,1.62191913,3701.3,3701.2,0.03098531]
[1732951479205,1.65570658,3701.3,3701.2,0.03098531]
[1732951479401,1.65570658,3701.3,3701.1,0.0366999]
[1732951479402,0.09651913,3700.1,3700.0,0.2163]
[1732951479648,0.09651913,3700.1,3700.0,0.02392969]
[1732951479835,0.09651913,3700.1,3699.7,0.2163]
[1732951480237,0.2,3701.1,3698.2,0.2163]
[1732951480238,0.09651913,3698.9,3698.2,0.2163]
[1732951480669,0.09651913,3699.3,3698.2,0.2163]
[1732951481758,0.09651913,3699.3,3698.2,0.2436785]
[1732951482145,0.09651913,3699.5,3698.2,0.2436785]
[1732951482449,0.09651913,3699.3,3698.2,0.2436785]
[1732951482862,0.09651913,3699.1,3698.2,0.2436785]
[1732951484585,0.09651913,3699.3,3698.2,0.2436785]
[1732951486852,0.09651913,3699.3,3698.4,0.2694]
[1732951487192,0.09651913,3699.7,3698.9,0.2163]
[1732951487491,0.9754,3700.8,3699.2,0.2163]
[1732951487695,0.9754,3701.2,3699.7,0.2694]
[1732951487859,0.09651913,3700.6,3699.9,0.2694]
[1732951488056,0.09651913,3700.6,3700.1,0.2694]
[1732951488254,0.03378525,3701.1,3700.1,0.2694]
[1732951488451,0.09651913,3701.3,3700.1,0.2967785]
[1732951488692,0.9754,3701.6,3700.1,0.2967785]
[1732951488693,0.09651913,3701.1,3700.1,0.2967785]
[1732951489200,0.09651913,3701.1,3700.2,0.2694]
[1732951489353,0.09651913,3701.3,3700.2,0.2694]
[1732951489553,0.03377914,3701.8,3700.2,0.2694]
[1732951489770,0.09651913,3701.4,3700.2,0.2694]
[1732951490254,0.09651913,3701.4,3700.1,0.0273785]
[1732951491063,0.09651913,3701.6,3700.2,0.2694]
[1732951491900,0.09651913,3701.8,3700.2,0.2694]
[1732951492055,0.09651913,3701.8,3700.4,0.2694]
[1732951492254,0.09651913,3701.8,3700.4,0.2967785]
[1732951492454,0.35079059,3703.3,3700.4,0.2967785]
[1732951492455,0.09651913,3702.0,3700.4,0.2967785]
[1732951492704,0.09651913,3702.0,3700.9,0.2694]
[1732951493071,0.09651913,3702.0,3700.9,0.2967785]
[1732951493658,0.09651913,3702.0,3700.9,0.0273785]
[1732951495463,0.09651913,3702.8,3701.0,0.55]
[1732951495783,0.09651913,3702.8,3700.9,0.13085446]
[1732951495784,0.09651913,3702.4,3700.9,0.12737359]
[1732951498583,0.09651913,3702.1,3700.9,0.0273785]
[1732951500211,0.03376952,3702.0,3700.9,0.0273785]
[1732951500573,0.09651913,3702.1,3700.9,0.0273785]
[1732951502413,0.09651913,3702.3,3700.9,0.0273785]
[1732951502589,0.09651913,3702.1,3700.9,0.0273785]
[1732951502784,0.03376951,3702.0,3700.9,0.0273785]
[1732951503376,0.09651913,3702.1,3700.9,0.0273785]
[1732951503676,0.0337695,3702.0,3700.9,0.0273785]
[1732951503879,0.09651913,3701.9,3700.9,0.0273785]
[1732951504280,0.09651913,3701.7,3700.9,0.0273785]
[1732951504614,0.03377453,3701.6,3700.9,0.0273785]
[1732951505110,0.09651913,3701.5,3700.9,0.0273785]
[1732951505277,0.03377508,3701.4,3700.9,0.0273785]
[1732951506411,0.03377507,3701.4,3700.9,0.0273785]
[1732951506599,0.09651913,3701.5,3698.7,1.05777498]
[1732951506600,0.1,3701.5,3698.7,1.05777498]
[1732951506808,0.1,3701.5,3699.2,0.55]
[1732951506975,0.1,3701.5,3699.3,0.2694]
[1732951507175,0.1,3701.5,3699.5,0.2694]
[1732951507400,0.1,3701.5,3700.3,0.2694]
[1732951508920,0.03377503,3701.4,3700.3,0.2694]
[1732951509091,0.1,3701.2,3698.9,0.2694]
[1732951509292,0.1,3701.2,3700.3,0.0273785]
[1732951509293,0.03377851,3701.1,3700.3,0.0273785]
[1732951509607,0.03377851,3701.1,3699.6,0.2694]
[1732951509834,0.1,3700.8,3700.3,0.0273785]
[1732951510139,0.03378187,3700.7,3700.3,0.0273785]
[1732951510313,0.1,3700.5,3700.3,0.0273785]
[1732951510656,0.13378356,3700.4,3700.3,0.0273785]
[1732951511606,0.1,3700.4,3700.3,0.0273785]
[1732951512344,0.13378506,3700.4,3700.3,0.0273785]
[1732951513711,0.1,3700.4,3700.3,0.0273785]
[1732951516347,0.13378566,3700.4,3700.3,0.0273785]
[1732951516552,0.1,3700.4,3700.3,2.7298585]
[1732951517812,0.1,3700.5,3700.4,2.70241]
[1732951517964,0.7694,3701.1,3700.4,2.70241]
[1732951517965,0.8694,3701.1,3701.0,2.70197]
[1732951518294,0.7694,3701.9,3701.8,2.70138]
[1732951518492,0.8694,3701.9,3701.8,2.70138]
[1732951518671,0.8694,3701.9,3701.8,2.7287585]
[1732951519904,1.4194,3701.9,3701.8,2.7287585]
[1732951520069,1.56134,3701.9,3701.8,2.7287585]
[1732951520571,1.01134,3701.9,3701.8,2.7287585]
[1732951520913,0.1,3701.9,3701.8,2.7287585]
[1732951525714,0.1,3702.4,3702.1,2.70116]
[1732951526017,0.1,3702.4,3702.3,2.70097]
[1732951526170,0.8694,3702.6,3702.5,2.70087]
[1732951526812,0.8694,3702.6,3702.5,2.7282485]
[1732951527105,0.1,3702.8,3702.7,2.70073]
[1732951527265,0.1,3703.1,3703.0,2.70051]
[1732951527469,0.1,3703.1,3702.9,2.70058]
[1732951527707,0.1,3703.1,3703.0,0.0273785]
[1732951528574,0.8694,3703.4,3703.0,0.0273785]
[1732951529108,0.1,3703.4,3703.0,0.0273785]
[1732951529419,0.1,3703.6,3703.0,0.57024735]
[1732951529572,0.1,3703.8,3703.0,0.57024735]
[1732951529772,0.1,3703.8,3703.0,0.0273785]
[1732951530172,0.1,3704.1,3703.0,0.0273785]
[1732951530608,0.1,3704.1,3703.0,0.03306862]
[1732951530810,1.6054833,3704.3,3703.0,0.03306862]
[1732951530811,0.1,3703.9,3703.0,0.03306862]
[1732951531109,0.03375391,3703.8,3703.0,0.03306862]
[1732951531422,0.1,3703.9,3703.0,0.03306862]
[1732951532020,0.0337539,3703.8,3703.0,0.03306862]
[1732951532612,0.1,3703.9,3703.0,0.03306862]
[1732951533014,0.0337539,3703.8,3703.0,0.03306862]
[1732951533385,0.9237,3703.6,3703.0,0.03306862]
[1732951534908,0.0337576,3703.5,3703.0,0.03306862]
[1732951535407,0.1,3703.6,3703.0,0.03306862]
[1732951535571,0.1,3703.8,3703.0,0.03306862]
[1732951535775,0.03375758,3703.7,3703.0,0.03306862]
[1732951536722,0.1,3703.8,3703.0,0.03306862]
[1732951538029,0.1,3703.3,3703.0,0.03306862]
[1732951539399,0.8186,3703.4,3703.0,0.03306862]
[1732951540127,0.7686,3703.4,3703.0,0.03306862]
[1732951540430,0.1,3703.3,3703.0,0.03306862]
[1732951541722,0.1,3703.6,3703.0,0.03306862]
[1732951541893,0.1,3703.4,3703.0,0.03306862]
[1732951543203,0.0337574,3703.3,3703.0,0.03306862]
[1732951543623,0.1337574,3703.3,3703.0,0.03306862]
[1732951543990,0.1,3703.3,3703.0,0.03306862]
[1732951545835,0.1,3703.3,3703.0,0.03306861]
[1732951547140,0.1,3703.1,3703.0,0.03306861]
[1732951548617,0.9186,3703.1,3703.0,0.03306861]
[1732951552497,0.1,3703.1,3703.0,0.03306861]
[1732951555880,0.13376155,3703.1,3703.0,0.03306861]
[1732951556390,0.1,3703.1,3703.0,0.03306861]
[1732951557272,0.24498644,3703.1,3703.0,0.03306861]
[1732951558284,0.1,3703.1,3703.0,0.03306861]
[1732951560788,0.1,3703.4,3703.0,0.03306861]
[1732951561590,0.03376224,3703.6,3703.0,0.03306861]
[1732951561591,0.1,3703.1,3703.0,0.03306861]
[1732951566356,0.8661,3703.1,3703.0,0.03306861]
[1732951566562,1.4161,3703.1,3703.0,0.03306861]
[1732951566755,1.55771,3703.1,3703.0,0.0330686]
[1732951566958,1.8090399,3703.1,3703.0,0.0330686]
[1732951567199,1.84280999,3703.1,3703.0,0.0330686]
[1732951567492,4.54324999,3703.1,3703.0,0.0330686]
[1732951567697,0.8661,3702.0,3700.6,0.2694]
[1732951567858,0.1,3702.0,3700.6,0.2694]
[1732951568258,0.1,3702.2,3700.7,0.2694]
[1732951568455,0.1,3702.0,3700.7,0.2694]
[1732951569497,0.1,3702.0,3700.7,0.0273785]
[1732951570569,0.13377199,3702.0,3700.7,0.0273785]
[1732951570767,0.1,3702.0,3700.7,0.0273785]
[1732951571096,0.13377198,3702.0,3700.7,0.0273785]
[1732951571467,0.1,3702.0,3700.7,0.0273785]
[1732951572563,0.13377195,3702.0,3700.7,0.0273785]
[1732951573504,0.1,3701.8,3700.7,0.0273785]
[1732951573712,0.1,3701.6,3700.7,0.0273785]
[1732951573931,0.0337762,3701.5,3700.7,0.0273785]
[1732951574417,0.7612,3701.3,3700.7,0.0273785]
[1732951574574,0.79497822,3701.3,3700.7,0.0273785]
[1732951575576,0.7612,3701.3,3700.7,0.0273785]
[1732951576502,0.1,3701.4,3700.7,0.0273785]
[1732951576977,0.1,3701.5,3700.7,0.0273785]
[1732951577176,0.7612,3701.6,3700.7,0.0273785]
[1732951577397,0.1,3701.8,3700.7,0.0273785]
[1732951577715,0.8612,3701.9,3700.7,0.0273785]
[1732951577873,0.1,3702.0,3700.7,0.0273785]
[1732951578072,1.28878428,3702.2,3700.7,0.0273785]
[1732951578314,0.52758428,3702.2,3700.7,0.0273785]
[1732951578504,0.1,3702.2,3700.7,0.0273785]
[1732951578877,0.1,3701.9,3700.7,0.0273785]
[1732951579072,0.7612,3702.5,3700.7,0.0273785]
[1732951579315,0.1,3702.3,3700.7,0.0273785]
[1732951579496,0.55,3702.4,3700.7,0.0273785]
[1732951579840,0.1,3701.9,3700.7,0.0273785]
[1732951579988,0.1,3702.1,3700.7,0.0273785]
[1732951580192,0.1,3701.9,3700.7,0.0273785]
[1732951580516,0.1,3702.1,3700.7,0.0273785]
[1732951580678,0.55,3702.4,3700.7,0.0273785]
[1732951580880,0.1,3701.9,3700.7,0.0273785]
[1732951581706,0.8612,3701.9,3700.7,0.0273785]
[1732951583122,0.1,3701.4,3700.7,0.0273785]
[1732951583329,0.8612,3701.2,3700.7,0.0273785]
[1732951583491,0.03377993,3701.1,3700.7,0.0273785]
[1732951584125,0.7612,3701.2,3700.7,0.0273785]
[1732951584612,0.1,3701.1,3701.0,2.97137]
[1732951585027,0.8612,3701.2,3701.1,2.97129]
[1732951586400,0.8612,3701.2,3701.1,2.70189]
[1732951586401,1.4112,3701.2,3701.1,2.70189]
[1732951586701,1.4112,3701.2,3701.0,2.7293485]
[1732951586702,1.3112,3701.1,3701.0,0.0273785]
[1732951587607,1.4112,3701.1,3701.0,0.0273785]
[1732951589853,0.8612,3701.1,3701.0,0.0273785]
[1732951590932,0.1,3701.1,3701.0,0.0273785]
[1732951591142,0.63059988,3701.5,3701.4,2.70168]
[1732951591430,0.1,3701.5,3701.4,2.7290585]
[1732951591639,0.7999,3702.0,3701.4,0.0273785]
[1732951591807,0.1,3701.7,3701.4,0.0273785]
[1732951592633,0.7999,3702.0,3701.4,0.0273785]
[1732951592840,0.1,3702.0,3701.4,0.0273785]
[1732951593841,0.63903154,3702.6,3701.4,0.0273785]
[1732951594014,0.1,3702.6,3701.4,0.0273785]
[1732951594209,0.7999,3702.9,3701.4,0.0273785]
[1732951594410,0.8999,3702.9,3702.8,2.70065]
[1732951594648,0.8999,3702.9,3702.8,2.7280285]
[1732951595098,1.4499,3702.9,3702.8,2.7280285]
[1732951595304,1.609051,3702.9,3702.8,2.7280285]
[1732951600151,1.609051,3702.9,3702.8,0.0273785]
[1732951606651,0.259151,3702.9,3702.8,0.0273785]
[1732951606805,0.1,3702.9,3702.8,0.0273785]
[1732951608410,0.65,3702.9,3702.8,0.0273785]
[1732951609254,1.4364,3702.9,3702.8,0.0273785]
[1732951609402,0.65,3702.9,3702.8,0.0273785]
[1732951609740,0.1,3702.9,3702.8,0.0273785]
[1732951609931,0.65,3702.9,3702.8,0.0273785]
[1732951610954,0.68376299,3702.9,3702.8,0.0273785]
[1732951611706,0.65,3702.9,3702.8,0.0273785]
[1732951613840,0.65,3702.9,3700.6,0.63034989]
[1732951613841,0.55,3702.8,3700.6,0.00772839]
[1732951614747,0.03376694,3702.7,3700.6,0.00772839]
[1732951615059,0.55,3702.6,3700.6,0.00772839]
[1732951616367,0.55,3702.6,3702.5,2.70087]
[1732951616542,0.69701669,3702.6,3702.5,2.70087]
[1732951616742,0.69701669,3702.6,3702.5,2.7282485]
[1732951617987,0.69701669,3702.6,3702.5,2.73494927]
[1732951618972,0.79701669,3702.6,3702.5,2.73494927]
[1732951623276,0.79701669,3702.6,3702.5,0.03407927]
[1732951623680,1.04884893,3702.6,3702.5,0.03407927]
[1732951624538,4.57844893,3702.6,3702.5,0.03407927]
[1732951624931,4.98138553,3702.6,3702.5,0.03407927]
[1732951626474,5.01516066,3702.6,3702.5,0.03407927]
[1732951627673,5.01516066,3702.6,3698.9,0.30845047]
[1732951627674,0.1,3701.0,3698.9,0.30845047]
[1732951627833,0.58377975,3700.9,3698.9,0.30845047]
[1732951628035,0.55,3700.6,3698.9,0.30845047]
[1732951628683,0.55,3700.6,3698.3,1.02914244]
[1732951628684,0.55,3700.6,3698.4,0.30845047]
[1732951629029,0.03378245,3700.5,3698.4,0.86095815]
[1732951629234,0.03378245,3700.5,3698.5,0.19901006]
[1732951629682,1.3628,3700.6,3698.5,0.19901006]
[1732951629972,0.55,3700.2,3698.5,0.19901006]
[1732951630185,0.55,3700.2,3698.5,0.0152]
[1732951630963,0.03378599,3700.1,3698.5,0.0152]
[1732951632662,0.55,3700.2,3698.5,0.0152]
[1732951634754,0.8128,3700.1,3698.5,0.0152]
[1732951635171,0.55,3700.2,3698.5,0.0152]
[1732951635774,0.55,3700.3,3698.5,0.0152]
[1732951636196,0.55,3700.3,3698.2,0.49916824]
[1732951637376,0.69628,3700.3,3698.2,0.49916824]
[1732951637796,1.3299,3700.1,3698.0,0.00644702]
[1732951637966,0.03378777,3700.0,3698.0,0.00644702]
[1732951638290,0.55,3699.9,3698.0,0.00644702]
[1732951640867,0.7799,3699.4,3697.8,0.2694]
[1732951642713,0.55,3699.3,3697.7,0.2694]
[1732951645125,0.7799,3699.4,3697.7,0.2694]
[1732951645863,0.7799,3699.9,3698.2,0.2694]
[1732951647242,0.7799,3700.8,3699.0,0.2694]
[1732951647448,0.7799,3700.8,3699.2,0.2694]
[1732951648539,0.7799,3700.8,3699.0,0.2694]
[1732951648739,0.7799,3700.8,3699.0,0.3694]
[1732951650284,0.7799,3700.8,3699.0,0.2694]
[1732951650507,0.7799,3700.6,3699.1,0.2694]
[1732951650667,0.7799,3700.4,3699.1,0.2694]
[1732951651004,0.91626812,3700.4,3699.1,0.2694]
[1732951651205,0.7799,3700.3,3699.1,0.2694]
[1732951651358,0.7799,3700.3,3698.0,0.2694]
[1732951651558,0.7799,3700.3,3698.5,0.2694]
[1732951656688,0.7799,3700.3,3698.8,0.2694]
[1732951659897,0.7799,3700.3,3699.1,0.2694]
[1732951661028,0.7799,3700.3,3698.2,0.2694]
[1732951661169,0.7799,3700.3,3698.7,0.2694]
[1732951661388,0.7799,3700.3,3698.7,0.79992705]
[1732951667175,0.7799,3700.3,3698.2,0.2694]
[1732951668537,0.7799,3700.3,3698.7,0.2694]
[1732951672944,0.7799,3700.3,3698.2,0.2694]
[1732951673140,0.7799,3700.3,3698.6,0.2694]
[1732951674944,0.7799,3700.3,3698.7,0.2694]
[1732951675145,0.8177,3700.1,3698.7,0.2694]
[1732951675369,0.8177,3699.9,3698.7,0.2694]
[1732951676067,0.8177,3699.9,3698.4,0.2694]
[1732951677863,0.8177,3699.9,3698.4,0.27485743]
[1732951687302,0.1,3699.5,3698.5,0.2694]
[1732951687603,0.769,3699.3,3698.5,0.2694]
[1732951687774,0.9109,3699.2,3698.5,0.2694]
[1732951688309,0.9109,3699.2,3698.6,0.2694]
[1732951689368,0.9109,3699.2,3698.4,0.00545743]
[1732951693388,0.9109,3699.2,3698.4,0.00545782]
[1732951699105,0.769,3699.2,3698.4,0.00545782]
[1732951706222,0.769,3699.2,3698.4,0.00545783]
[1732951707626,0.1,3700.2,3698.4,0.00545783]
[1732951707627,0.7751,3700.2,3698.4,0.00545783]
[1732951707832,0.7751,3700.2,3698.5,0.2694]
[1732951708027,0.7751,3700.2,3698.5,0.27485785]
[1732951708230,0.7751,3700.2,3698.5,0.27485786]
[1732951708541,0.7751,3700.2,3698.5,0.27485787]
[1732951708749,0.7751,3700.2,3698.5,0.27485789]
[1732951708916,0.7751,3700.2,3698.5,0.2748579]
[1732951709250,0.7751,3700.2,3698.5,0.27485791]
[1732951709450,0.7751,3700.2,3698.5,0.27485793]
[1732951709756,0.7751,3700.2,3698.5,0.27485794]
[1732951709957,0.7751,3700.2,3698.5,0.27485795]
[1732951710139,0.7751,3700.2,3698.5,0.27485796]
[1732951710345,0.7751,3700.2,3698.5,0.27485797]
[1732951710551,0.7751,3700.2,3698.5,0.27485798]
[1732951711017,0.7751,3700.2,3698.5,0.27485799]
[1732951711218,0.7751,3700.2,3698.5,0.274858]
[1732951711761,0.7751,3700.2,3698.7,0.2694]
[1732951711929,0.7751,3700.2,3698.7,0.27485804]
[1732951712132,0.7751,3700.2,3698.7,0.27485805]
[1732951712336,0.7751,3700.2,3698.7,0.27485806]
[1732951712782,0.7751,3700.2,3698.7,0.27485807]
[1732951713262,0.7751,3700.2,3698.7,0.27485808]
[1732951713863,0.7751,3700.2,3698.7,0.27485809]
[1732951714048,0.7751,3700.2,3698.7,0.2748581]
[1732951714224,0.7751,3700.2,3698.7,0.27485811]
[1732951714421,0.7751,3700.2,3698.7,0.27485812]
[1732951714616,0.7751,3700.2,3698.7,0.27485813]
[1732951715236,0.7751,3700.2,3698.7,0.27485814]
[1732951715735,0.7751,3700.2,3698.7,0.27485815]
[1732951715933,0.7751,3700.2,3699.2,0.2694]
[1732951716257,0.7751,3700.2,3699.2,0.27485817]
[1732951716465,0.7751,3700.2,3699.2,0.27485818]
[1732951716666,0.7751,3700.2,3699.2,0.27485819]
[1732951717029,0.7751,3700.2,3699.2,0.00545819]
[1732951719936,0.7751,3700.2,3699.3,0.2694]
[1732951720314,0.7751,3700.2,3699.3,0.2748582]
[1732951721244,0.7751,3700.2,3699.3,0.27485821]
[1732951722165,0.7751,3700.2,3699.3,0.27485822]
[1732951723074,0.7751,3700.2,3699.3,0.27485823]
[1732951723769,0.7751,3700.2,3699.3,0.27485824]
[1732951724567,0.7751,3700.2,3699.3,0.27485825]
[1732951725671,0.7751,3700.2,3699.3,0.27485826]
[1732951726550,0.7751,3700.2,3699.3,0.27485827]
[1732951727475,0.7751,3700.2,3699.3,0.27485828]
[1732951728469,0.7751,3700.2,3699.3,0.27485829]
[1732951729957,0.7751,3700.2,3699.3,0.2748583]
[1732951730766,0.7751,3700.2,3699.3,0.27485831]
[1732951731855,0.7751,3700.2,3699.3,0.27485832]
[1732951732677,0.7751,3700.2,3699.3,0.00545832]
[1732951736388,0.7751,3700.2,3699.3,0.00545833]
[1732951740599,0.7751,3700.2,3699.3,0.27485833]
[1732951740966,0.7751,3700.2,3699.3,0.27485834]
[1732951741372,0.7751,3700.2,3699.3,0.37485835]
[1732951741791,0.7751,3700.2,3699.4,0.2694]
[1732951742005,0.7751,3700.2,3699.4,0.27485837]
[1732951742571,0.7751,3700.2,3699.4,0.27485838]
[1732951742774,0.7751,3700.2,3699.5,0.2694]
[1732951743073,0.7751,3700.2,3699.5,0.27485838]
[1732951743468,0.7751,3700.2,3699.5,0.27485839]
[1732951743871,0.7751,3700.2,3699.5,0.00545839]
[1732951746708,0.55,3699.9,3699.5,0.00545839]
[1732951746876,0.1885384,3699.8,3699.5,0.00545839]
[1732951747071,0.7516,3699.8,3699.5,0.00545839]
[1732951747887,0.55,3699.7,3699.5,0.00545839]
[1732951748168,0.7516,3699.6,3699.5,0.00545839]
[1732951748583,0.55,3699.4,3697.9,0.2694]
[1732951748817,0.7516,3699.3,3697.9,0.2694]
[1732951749574,0.7516,3699.3,3697.7,0.55167453]
[1732951749575,0.7516,3699.3,3697.8,0.2694]
[1732951750313,0.55,3699.4,3697.8,0.2694]
[1732951750314,0.55,3699.0,3697.8,0.2694]
[1732951750535,0.7863,3698.9,3697.8,0.2694]
[1732951750705,0.7863,3698.9,3697.5,0.2694]
[1732951751606,0.7863,3698.9,3697.7,0.2694]
[1732951752331,0.7863,3700.2,3697.9,0.2694]
[1732951752636,0.7863,3700.2,3698.3,0.2694]
[1732951753017,0.7863,3700.2,3698.6,0.2694]
[1732951753616,0.7863,3700.2,3698.9,0.2694]
[1732951756842,0.7863,3700.2,3699.7,0.2694]
[1732951758069,0.7863,3701.5,3699.7,0.2694]
[1732951758226,0.7863,3701.3,3699.7,0.2694]
[1732951758427,0.7863,3701.1,3699.7,0.2694]
[1732951763183,0.7863,3701.1,3699.2,0.2694]
[1732951764271,0.7863,3701.1,3699.1,0.1]
[1732951764272,0.7863,3701.1,3699.6,0.2694]
[1732951771026,0.7508,3701.8,3699.6,0.2694]
[1732951771203,0.55,3701.7,3699.9,0.2694]
[1732951772013,0.7508,3701.6,3699.9,0.2694]
[1732951774522,0.7508,3701.6,3700.0,0.2694]
[1732951775317,0.7508,3701.6,3700.4,0.2694]
[1732951775811,0.7508,3701.2,3699.8,0.2701]
[1732951776221,0.7508,3701.2,3699.2,0.2701]
[1732951776390,0.7508,3701.2,3699.8,0.2701]
[1732951781996,0.7508,3702.2,3699.8,0.2701]
[1732951782341,0.7508,3702.1,3699.8,0.2701]
[1732951782626,0.7508,3701.9,3699.8,0.2701]
[1732951784418,0.7508,3701.9,3699.8,0.823995]
[1732951785207,0.7508,3701.9,3700.4,0.2701]
[1732951787519,0.7508,3701.7,3700.5,0.2701]
[1732951787721,0.55,3701.6,3700.5,0.2701]
[1732951787884,0.18508,3701.5,3700.5,0.2701]
[1732951788438,0.7508,3701.4,3700.5,0.2701]
[1732951788586,0.7508,3701.4,3700.6,0.2701]
[1732951789523,0.7508,3701.4,3700.2,0.2701]
[1732951797290,1.3051,3702.1,3700.2,0.2701]
[1732951797493,0.14051,3702.0,3700.2,0.2701]
[1732951797708,0.7551,3702.1,3700.2,0.2701]
[1732951798889,0.7551,3702.1,3700.2,0.2746769]
[1732951800744,0.58376588,3702.0,3700.2,0.2746769]
[1732951800899,0.7551,3701.9,3700.2,0.2746769]
[1732951801102,0.7551,3701.7,3700.2,0.2746769]
[1732951802715,0.7551,3702.7,3700.6,0.2701]
[1732951802910,0.7551,3703.3,3701.0,0.2701]
[1732951803104,0.03375551,3703.2,3701.2,0.2701]
[1732951803307,0.7551,3703.2,3701.4,0.2701]
[1732951804004,0.03375776,3703.1,3701.4,0.2701]
[1732951804207,0.03375776,3703.1,3701.0,0.36877468]
[1732951804208,0.7551,3703.0,3701.1,0.2701]
[1732951804525,0.7551,3703.0,3701.7,0.2701]
[1732951810461,0.55,3702.8,3700.4,0.32969135]
[1732951810623,0.55,3702.8,3700.5,0.38897328]
[1732951811160,0.55,3702.8,3700.5,0.71866463]
[1732951811522,0.55,3702.8,3700.5,1.14165696]
[1732951811722,0.55,3702.8,3701.4,0.55343057]
[1732951812058,0.55,3702.6,3701.4,0.55343057]
[1732951812424,0.55,3702.9,3701.4,0.55343057]
[1732951813052,0.7551,3703.0,3701.4,0.9764229]
[1732951814046,0.7551,3703.0,3701.4,0.98099907]
[1732951814250,0.7551,3703.0,3701.4,0.98099905]
[1732951814452,0.7551,3703.0,3701.4,0.98099902]
[1732951814622,0.7551,3703.0,3701.4,0.98099899]
[1732951815068,0.7551,3703.0,3701.4,0.98099897]
[1732951815264,0.7551,3703.0,3701.4,0.55800663]
[1732951815573,0.7551,3703.0,3701.5,0.13699723]
[1732951815865,0.55,3702.9,3701.5,0.00457603]
[1732951817063,0.55,3702.7,3701.5,0.00457603]
[1732951818681,0.8098,3702.8,3701.5,0.00457603]
[1732951819164,1.383,3703.1,3701.5,0.00457603]
[1732951823571,0.833,3703.0,3701.5,0.00457603]
[1732951825073,0.55,3702.8,3701.5,0.00457603]
[1732951825279,0.55,3702.6,3701.5,0.00457602]
[1732951826758,0.833,3702.7,3701.5,0.00457602]
[1732951826951,0.55,3702.9,3701.5,0.00457602]
[1732951834105,0.55,3702.9,3701.4,0.44715137]
[1732951834977,0.6983,3702.9,3701.4,0.44715137]
[1732951835172,0.65,3702.7,3701.0,0.42299233]
[1732951835483,0.65,3702.7,3700.7,0.38897328]
[1732951835484,0.55,3702.4,3700.8,0.41714655]
[1732951835792,0.65,3702.5,3700.8,0.41714655]
[1732951838733,0.55,3702.3,3700.8,0.41714655]
[1732951839494,0.55,3702.3,3701.1,0.53376408]
[1732951839696,0.69564,3702.3,3701.1,0.53376408]
[1732951840512,0.69564,3702.3,3701.2,0.2701]
[1732951840711,0.8064,3702.2,3701.2,0.2701]
[1732951841751,0.55,3701.5,3700.5,0.2701]
[1732951842038,0.55,3701.3,3700.5,0.2701]
[1732951842240,0.8064,3701.1,3700.5,0.2701]
[1732951842610,0.8064,3701.1,3700.2,0.2701]
[1732951846001,0.55,3701.0,3699.6,0.2701]
[1732951847341,0.8064,3700.9,3699.8,0.2701]
[1732951857342,0.8064,3700.9,3699.8,0.61110438]
[1732951857504,0.8064,3700.9,3699.7,0.52920718]
[1732951857505,0.8064,3700.9,3700.0,0.2701]
[1732951858608,0.8064,3700.9,3699.8,0.2701]
[1732951858948,0.55,3700.4,3699.8,0.2701]
[1732951859161,0.8182,3700.2,3699.8,0.2701]
[1732951859707,0.8182,3700.2,3699.0,0.2701]
[1732951862160,0.8182,3701.2,3699.2,0.2701]
[1732951862314,0.8182,3701.2,3699.1,0.34100438]
[1732951862315,0.8182,3701.2,3699.4,0.2701]
[1732951863349,0.8182,3701.2,3700.0,0.2701]
[1732951864156,0.8182,3700.9,3700.0,0.2701]
[1732951868230,0.8182,3700.9,3700.1,0.2701]
[1732951868833,0.8182,3700.5,3699.3,0.2701]
[1732951869133,0.55,3700.4,3699.3,0.2701]
[1732951869338,0.8182,3700.3,3699.3,0.2701]
[1732951869850,0.03378342,3700.2,3699.3,0.2701]
[1732951870054,0.8281,3700.1,3699.4,0.2701]
[1732951870824,0.55,3699.9,3699.4,0.2701]
[1732951871050,0.8281,3699.8,3699.4,0.2701]
[1732951872025,0.8281,3699.8,3698.9,0.2701]
[1732951872929,0.8281,3699.8,3698.5,0.81980178]
[1732951872930,0.8281,3699.8,3698.6,0.2701]
[1732951873244,0.1,3699.6,3698.5,0.56280178]
[1732951873446,0.8281,3699.5,3698.6,0.13909018]
[1732951874468,0.8281,3699.5,3698.5,0.53774917]
[1732951875127,0.8281,3699.5,3698.5,0.21386617]
[1732951877207,0.8281,3699.5,3697.5,0.2701]
[1732951877463,0.8281,3699.5,3697.9,0.2701]
[1732951877670,0.8281,3699.3,3697.9,0.2701]
[1732951878338,0.8281,3699.0,3697.9,0.2701]
[1732951878645,0.8281,3699.0,3697.7,0.2701]
[1732951973740,0.02397468,3698.1,3697.4,0.160119]
[1732951974996,0.03380348,3699.2,3697.4,0.160119]